[Event "WYCC 2018 O14"]
[Site "Halkidiki"]
[Date "2018.10.21"]
[Round "2"]
[White "Subelj, Jan"]
[Black "Abelakiotis, Stavros"]
[Result "1-0"]
[ECO "B30"]
[WhiteElo "2281"]
[BlackElo "1994"]
[Annotator "NA"]
[PlyCount "69"]
[EventDate "2018.10.20"]
[EventType "swiss"]
[EventCountry "GRE"]
[SourceTitle "playchess.com"]
[Source "ChessBase"]
[SourceQuality "1"]
[TimeControl "40/5400+30:1800+30"]

1. e4 {[%emt 0:00:00]} c5 {[%emt 0:00:00]} 2. Nf3 {[%emt 0:00:00]} Nc6 {[%emt 0:00:20]} 3. c3 {[%emt 0:00:13]} Nf6 {[%emt 0:00:21]} 4. e5 {[%emt 0:00:05]} Nd5 {[%emt 0:00:15]} 5. Bc4 {[%emt 0:00:39]} Nb6 {[%emt 0:00:15]} 6. Bb3 {[%emt 0:00:05]} c4 {[%emt 0:00:18]} 7. Bc2 {[%emt 0:00:02]} d6 {[%emt 0:00:12]} 8. exd6 {[%emt 0:00:33]} Qxd6 {[%emt 0:00:42]} 9. O-O {[%emt 0:05:59]} Bg4 {[%emt 0:01:05] B22: Sicilian: 2 c3} (9... g6 10. b3 Bg7 11. Na3 cxb3 12. axb3 O-O 13. Nc4 Nxc4 14. bxc4 Be6 15. Qe2 Qc5 16. Ra4 Na5 17. d4 Qc7 18. Bd3 Rac8 19. Bf4 Qxf4 20. Rxa5 {½-½ (31) Piorun,K (2633)-Wojtaszek,R (2750) Warsaw 2018}) 10. b3 {[%emt 0:10:30]} O-O-O {[%emt 0:11:41]} 11. h3 {[%emt 0:08:06]} Bh5 $1 $146 {[%emt 0:01:16]} ({Predecessor:} 11... Bxf3 12. Qxf3 Ne5 13. Qe2 Nd3 14. bxc4 Nxc1 15. Rxc1 Qf4 16. c5 Nc4 17. Rd1 Nb2 18. Re1 Qc4 19. d4 e6 20. Qf3 f6 21. Bb3 {1-0 (21) Gosek,Z (2022)-Hilton,S (1912) Dadaj 2012}) 12. Na3 {[%emt 0:00:37]} Ne5 {[%emt 0:19:16]} 13. Be4 {[%emt 0:16:44]} e6 {[%emt 0:16:59]} 14. Nb5 {[%emt 0:08:53]} Qb8 {[%emt 0:00:34]} 15. Qe2 {[%emt 0:02:10]} f5 {[%emt 0:18:51]} 16. Bc2 {[%emt 0:07:43]} Nxf3+ {[%emt 0:15:40]} 17. gxf3 {[%emt 0:00:45]} Re8 {[%emt 0:00:41]} 18. bxc4 {[%emt 0:00:48]} a6 {[%emt 0:04:55]} 19. Nd4 {[%emt 0:01:15]} g6 {[%emt 0:02:08]} 20. d3 {[%emt 0:00:36]} e5 {[%emt 0:01:16]} 21. Rb1 {[%emt 0:00:58]} Bc5 {[%emt 0:01:30]} 22. Nb3 {[%emt 0:00:27]} Na4 {[%emt 0:02:09]} 23. Nxc5 {[%emt 0:01:15]} Nxc5 {[%emt 0:00:04]} 24. Re1 {[%emt 0:06:33]} Qc7 {[%emt 0:00:59]} 25. Ba3 {[%emt 0:00:47]} Nd7 {[%emt 0:00:32]} 26. Ba4 {[%emt 0:01:06]} Re6 {[%emt 0:00:27]} 27. d4 {[%emt 0:01:21]} e4 {[%emt 0:00:31]} 28. d5 {[%emt 0:00:19]} Ree8 $2 {[%emt 0:00:32]} (28... Ne5 $11 29. d6 Rxd6 30. Bxd6 Qxd6) 29. d6 {[%emt 0:00:57]} Qd8 {[%emt 0:00:28]} 30. Qe3 {[%emt 0:01:13]} exf3 {[%emt 0:00:25]} 31. Bxd7+ {[%emt 0:00:22]} Qxd7 {[%emt 0:00:37]} 32. Qa7 {[%emt 0:00:13]} Rxe1+ {[%emt 0:00:30]} 33. Rxe1 {[%emt 0:00:08]} Kd8 {[%emt 0:00:28]} 34. Qb6+ {[%emt 0:00:34]} Kc8 {[%emt 0:00:24]} 35. Re7 {[%emt 0:00:07]} 1-0

[Event "WYCC 2018 O14"]
[Site "Halkidiki"]
[Date "2018.10.21"]
[Round "2"]
[White "Boyer, Mahel"]
[Black "Chatzieleftheriou, Andreas"]
[Result "1-0"]
[ECO "E24"]
[WhiteElo "2227"]
[BlackElo "1984"]
[Annotator "NA"]
[PlyCount "85"]
[EventDate "2018.10.20"]
[EventType "swiss"]
[EventCountry "GRE"]
[SourceTitle "playchess.com"]
[Source "ChessBase"]
[SourceQuality "1"]
[TimeControl "40/5400+30:1800+30"]

1. d4 {[%emt 0:00:00]} Nf6 {[%emt 0:00:00]} 2. c4 {[%emt 0:00:01]} e6 {[%emt 0:00:00]} 3. Nc3 {[%emt 0:00:37]} Bb4 {[%emt 0:00:07]} 4. a3 {[%emt 0:00:01]} Bxc3+ {[%emt 0:00:43]} 5. bxc3 {[%emt 0:00:01]} b6 {[%emt 0:01:26]} 6. f3 {[%emt 0:01:05]} d6 {[%emt 0:02:45]} 7. e4 {[%emt 0:00:02] E24: Nimzoindisch (Sämisch-Variante)} Nbd7 {[%emt 0:02:09]} (7... Nc6 8. Bd3 Na5 9. Nh3 Ba6 10. Bg5 Qd7 11. e5 dxe5 12. dxe5 h6 13. Be3 Ng8 14. Be4 O-O-O 15. Qxd7+ Rxd7 16. c5 Ne7 17. Kf2 Rhd8 {½-½ (17) Talla,V (2402)-Macko,M (2158) Banska Stiavnica 2018}) 8. Bd3 {[%emt 0:00:07]} e5 {[%emt 0:07:45]} 9. Ne2 {[%emt 0:00:09]} O-O {[%emt 0:00:41]} 10. Bg5 {[%emt 0:00:02]} Re8 {[%emt 0:03:22]} 11. Qd2 {[%emt 0:00:24]} Nf8 {[%emt 0:12:01]} 12. O-O {[%emt 0:00:12]} h6 {[%emt 0:01:12]} 13. Be3 {[%emt 0:00:45]} c5 $146 {[%emt 0:01:11]} ({Vorgänger:} 13... Bb7 14. Ng3 Ng6 {1-0 (29) Scharff,K (1887)-Duester,F (1724) Leverkusen 2011}) 14. Ng3 {[%emt 0:01:13]} Be6 {[%emt 0:04:26]} 15. a4 {[%emt 0:02:53]} a5 {[%emt 0:02:13]} 16. Rae1 {[%emt 0:05:08]} Rc8 {[%emt 0:04:46]} 17. Nf5 {[%emt 0:01:32]} Bxf5 {[%emt 0:05:42]} 18. exf5 {[%emt 0:00:01]} N8h7 {[%emt 0:12:42]} 19. g4 {[%emt 0:06:18]} e4 {[%emt 0:01:41]} 20. fxe4 {[%emt 0:00:31]} Nxe4 {[%emt 0:01:33]} 21. Qc2 {[%emt 0:00:13]} Nef6 {[%emt 0:02:03]} 22. Qg2 {[%emt 0:00:19]} Rc7 {[%emt 0:05:24]} 23. Bd2 {[%emt 0:05:04]} Rce7 {[%emt 0:03:40]} 24. Rxe7 {[%emt 0:07:29]} Rxe7 {[%emt 0:00:09]} 25. h4 {[%emt 0:00:07]} Qe8 {[%emt 0:04:51]} 26. g5 {[%emt 0:20:26]} hxg5 {[%emt 0:00:12]} 27. hxg5 {[%emt 0:02:57]} Ne4 {[%emt 0:00:10]} 28. f6 {[%emt 0:01:51]} Nxd2 {[%emt 0:06:08]} 29. Bxh7+ {[%emt 0:06:19]} Kxh7 {[%emt 0:00:04]} 30. g6+ {[%emt 0:00:18]} Kg8 {[%emt 0:02:49]} 31. fxe7 {[%emt 0:01:43]} Nxf1 {[%emt 0:00:34]} 32. Qh3 {[%emt 0:00:05]} fxg6 {[%emt 0:01:41]} 33. Qe6+ {[%emt 0:00:35]} Kh7 {[%emt 0:00:15]} 34. Kxf1 {[%emt 0:00:07]} g5 {[%emt 0:00:52]} 35. Kg2 {[%emt 0:00:59]} g4 {[%emt 0:01:13]} 36. Kg3 {[%emt 0:01:21]} g6 {[%emt 0:07:29]} 37. Kxg4 {[%emt 0:03:17]} Kg7 {[%emt 0:00:10]} 38. Kg5 {[%emt 0:00:54]} Kh7 {[%emt 0:00:03]} 39. Qxd6 {[%emt 0:01:11]} cxd4 {[%emt 0:00:51]} 40. cxd4 {[%emt 0:00:00]} b5 {[%emt 0:00:00]} 41. cxb5 {[%emt 0:00:31]} Qf7 {[%emt 0:00:57]} 42. Qh2+ {[%emt 0:01:15]} Kg8 {[%emt 0:00:17]} 43. Qe5 {[%emt 0:00:38]} 1-0

[Event "WYCC 2018 O14"]
[Site "Halkidiki"]
[Date "2018.10.21"]
[Round "2"]
[White "Turcan, Richard"]
[Black "Gaal, Zsoka"]
[Result "1/2-1/2"]
[ECO "B35"]
[WhiteElo "2218"]
[BlackElo "1976"]
[Annotator "NA"]
[PlyCount "97"]
[EventDate "2018.10.20"]
[EventType "swiss"]
[EventCountry "GRE"]
[SourceTitle "playchess.com"]
[Source "ChessBase"]
[SourceQuality "1"]
[TimeControl "40/5400+30:1800+30"]

1. e4 {[%emt 0:00:00]} c5 {[%emt 0:00:00]} 2. Nf3 {[%emt 0:00:00]} g6 {[%emt 0:00:11]} 3. d4 {[%emt 0:00:07]} cxd4 {[%emt 0:00:06]} 4. Nxd4 {[%emt 0:00:06]} Nc6 {[%emt 0:00:18]} 5. Nc3 {[%emt 0:00:22]} Bg7 {[%emt 0:00:19]} 6. Be3 {[%emt 0:00:09]} Nf6 {[%emt 0:00:34]} 7. Bc4 {[%emt 0:00:51]} Qa5 {[%emt 0:00:28]} 8. O-O {[%emt 0:00:50] LiveBook: 895 Games} O-O {[%emt 0:01:07]} 9. Bb3 {[%emt 0:04:53]} d6 {[%emt 0:01:40]} 10. h3 {[%emt 0:01:23]} Bd7 {[%emt 0:07:16]} 11. Nde2 {[%emt 0:11:38]} b5 {[%emt 0:09:40] B35: Sicilian: Accelerated Dragon with 5 Nc3: main line} (11... Rfc8 12. f4 Be8 13. g4 Nd7 14. a3 Nc5 15. Ba2 Na4 16. b4 Nxc3 17. Nxc3 Qa6 18. b5 Qa5 19. Nd5 Qxb5 20. f5 Qb2 21. c3 Bxc3 22. Rb1 Qxa2 23. Nxc3 Qc4 24. Nd5 Qxe4 {1-0 (24) Belov,V (2589)-Zvjaginsev,V (2674) Ramenskoe 2006}) 12. a3 {[%emt 0:25:29]} Rab8 {[%emt 0:19:51]} 13. Nf4 $146 {[%emt 0:06:40]} ({Predecessor:} 13. f4 Qc7 14. Ng3 Na5 15. Bd5 Nc4 16. Bxc4 bxc4 17. Qc1 Bc6 18. e5 dxe5 19. fxe5 Qxe5 {0-1 (36) Stevanec,L-Bui,K Szeged 1994}) 13... Rfc8 {[%emt 0:08:54]} 14. Qe2 {[%emt 0:08:29]} Be8 {[%emt 0:11:05]} 15. Rad1 {[%emt 0:05:24]} b4 {[%emt 0:06:03]} 16. axb4 {[%emt 0:00:22]} Qxb4 {[%emt 0:02:16]} 17. f3 {[%emt 0:07:09]} Qb7 {[%emt 0:06:27]} 18. Ra1 {[%emt 0:05:33]} Nd7 {[%emt 0:07:06]} 19. Nd3 {[%emt 0:07:01]} Nde5 {[%emt 0:09:36]} 20. Nxe5 {[%emt 0:01:30]} Bxe5 {[%emt 0:00:54]} 21. Qf2 {[%emt 0:01:50]} a5 {[%emt 0:02:33]} 22. f4 {[%emt 0:00:13]} Bg7 {[%emt 0:01:15] [#]} 23. f5 $1 {[%emt 0:00:51]} Nd8 {[%emt 0:01:57]} 24. fxg6 {[%emt 0:03:07]} hxg6 {[%emt 0:00:08]} 25. Rxa5 {[%emt 0:01:10]} Ra8 {[%emt 0:02:05]} 26. Bd5 {[%emt 0:04:14]} Qxb2 {[%emt 0:00:15]} 27. Nd1 {[%emt 0:00:37]} Rxa5 {[%emt 0:00:45]} 28. Nxb2 {[%emt 0:00:05]} Bxb2 {[%emt 0:00:04]} 29. Bb6 {[%emt 0:02:06]} Ra4 {[%emt 0:00:56]} 30. Bb3 $2 {[%emt 0:00:29]} ({Weaker is} 30. Bxd8 Bd4 $17) (30. Qh4 $18 {and White stays clearly on top.} Kf8 31. Qg4) 30... Rxe4 {[%emt 0:00:31] [#]} 31. Qf3 $1 {[%emt 0:01:34]} Re5 {[%emt 0:00:28]} 32. Bxd8 {[%emt 0:00:59]} Bd4+ {[%emt 0:00:33]} 33. Kh1 {[%emt 0:00:43]} Rf5 {[%emt 0:00:21]} 34. Qd3 {[%emt 0:00:11]} Rxf1+ {[%emt 0:00:26]} 35. Qxf1 {[%emt 0:00:01]} Rxd8 {[%emt 0:00:18]} 36. Qd3 {[%emt 0:00:53]} Bg7 {[%emt 0:00:47]} 37. Qxg6 {[%emt 0:00:44]} Ra8 {[%emt 0:00:37]} 38. h4 {[%emt 0:00:39]} e6 {[%emt 0:00:33]} 39. Bxe6 {[%emt 0:00:36]} (39. Qe4 $16 Ra1+ 40. Kh2) 39... fxe6 {[%emt 0:00:28]} 40. Qxe6+ {[%emt 0:00:00]} Bf7 {[%emt 0:00:00]} 41. Qxd6 {[%emt 0:01:23]} Re8 {[%emt 0:05:01]} 42. Kg1 {[%emt 0:08:55]} Be5 {[%emt 0:03:38]} 43. Qd2 {[%emt 0:01:45]} Bf6 {[%emt 0:03:43]} 44. h5 {[%emt 0:03:27]} Bxh5 {[%emt 0:04:28]} 45. Qd6 {[%emt 0:07:51]} Be5 {[%emt 0:05:00]} 46. Qd3 {[%emt 0:02:34]} Bf7 {[%emt 0:01:16]} 47. g3 {[%emt 0:01:51]} Bf6 {[%emt 0:01:44]} 48. Kf2 {[%emt 0:02:04]} Kg7 {[%emt 0:01:11]} 49. Qf5 $15 {[%emt 0:01:57]} 1/2-1/2

[Event "WYCC 2018 O14"]
[Site "Halkidiki"]
[Date "2018.10.21"]
[Round "2"]
[White "Van Dael, Siem"]
[Black "Egorov, Mikhail"]
[Result "1/2-1/2"]
[ECO "B39"]
[WhiteElo "2202"]
[BlackElo "2006"]
[Annotator "NA"]
[PlyCount "78"]
[EventDate "2018.10.20"]
[EventType "swiss"]
[EventCountry "GRE"]
[SourceTitle "playchess.com"]
[Source "ChessBase"]
[SourceQuality "1"]
[TimeControl "40/5400+30:1800+30"]

1. e4 {[%emt 0:00:00]} c5 {[%emt 0:00:00]} 2. Nf3 {[%emt 0:00:00]} Nc6 {[%emt 0:00:00]} 3. d4 {[%emt 0:00:00]} cxd4 {[%emt 0:00:00]} 4. Nxd4 {[%emt 0:00:00]} g6 {[%emt 0:00:00]} 5. c4 {[%emt 0:00:00]} Bg7 {[%emt 0:00:00]} 6. Be3 {[%emt 0:00:04]} Nf6 {[%emt 0:00:02]} 7. Nc3 {[%emt 0:00:06]} Ng4 {[%emt 0:00:10]} 8. Qxg4 {[%emt 0:00:06]} Nxd4 {[%emt 0:00:05]} 9. Qd1 {[%emt 0:00:04]} Ne6 {[%emt 0:00:06]} 10. Qd2 {[%emt 0:01:53]} Qa5 {[%emt 0:00:15]} 11. Rc1 {[%emt 0:02:06]} b6 {[%emt 0:00:34]} 12. Be2 {[%emt 0:01:59]} Bb7 {[%emt 0:00:06]} 13. f3 {[%emt 0:00:18]} f5 {[%emt 0:00:43]} 14. exf5 {[%emt 0:04:14] B39: Sicilian: Maroczy Bind with 5...Bg7 and 7...Ng4} gxf5 {[%emt 0:00:11]} 15. O-O {[%emt 0:04:43]} (15. f4 O-O-O 16. O-O Rhg8 17. Bf3 Bxf3 18. Rxf3 Bxc3 19. Rxc3 Nc5 20. Qc2 Ne4 21. Ra3 Qb4 {1-0 (33) Dvoirys,S (2520)-Zilberman,Y (2404) Herzliya 2016}) 15... Rg8 {[%emt 0:01:27]} 16. Rfd1 {[%emt 0:04:19] LiveBook: 4 Games} d6 {[%emt 0:00:56]} 17. c5 {[%emt 0:09:50]} bxc5 $146 {[%emt 0:01:21]} ({Predecessor:} 17... Nxc5 18. Bb5+ Nd7 19. Qe2 Be5 20. Qc4 Rg7 21. Qc7 Rd8 22. Qxb7 Bxc3 23. Bxd7+ Rxd7 24. Qc8+ {1-0 (24) Andreev,E-Reinaldo Castineira,R Szeged 1994}) 18. Bc4 {[%emt 0:09:04]} (18. Kh1 $16) 18... Bxc3 $1 {[%emt 0:04:41]} 19. Rxc3 {[%emt 0:00:19]} Rg6 $2 {[%emt 0:09:17]} (19... Bxf3 $1 $15 {keeps the upper hand.} 20. g3 (20. Bxe6 Rxg2+ 21. Qxg2 Bxg2 $17) 20... Rg6) 20. Bxe6 {[%emt 0:12:58]} Rxe6 {[%emt 0:00:09]} 21. Bxc5 {[%emt 0:00:37]} dxc5 {[%emt 0:08:03]} 22. Qd7+ {[%emt 0:00:11]} Kf7 {[%emt 0:00:06]} 23. Qxb7 {[%emt 0:00:10]} Rd8 {[%emt 0:00:21]} 24. Qb3 {[%emt 0:10:44]} c4 {[%emt 0:01:19]} 25. Qc2 {[%emt 0:01:43]} Qb6+ {[%emt 0:34:52]} 26. Kf1 {[%emt 0:00:32]} Rxd1+ {[%emt 0:04:38]} 27. Qxd1 {[%emt 0:02:15]} Qxb2 {[%emt 0:00:25]} 28. Rxc4 {[%emt 0:06:49]} Qxa2 {[%emt 0:03:42]} 29. Ra4 {[%emt 0:01:38]} Qb2 {[%emt 0:01:08]} 30. Ra5 {[%emt 0:00:22]} Re5 {[%emt 0:07:51]} 31. Rxe5 {[%emt 0:03:05]} Qxe5 {[%emt 0:00:53]} 32. Qa4 {[%emt 0:01:00]} a5 {[%emt 0:00:30]} 33. g3 {[%emt 0:00:43]} Qc5 {[%emt 0:01:05]} 34. Kg2 {[%emt 0:00:52]} Ke6 {[%emt 0:06:03]} 35. Qb3+ $17 {[%emt 0:00:41]} Kd6 {[%emt 0:00:34]} 36. Qb8+ {[%emt 0:01:05]} Qc7 {[%emt 0:00:40]} 37. Qb3 {[%emt 0:00:35]} Qc5 {[%emt 0:01:55]} 38. Qb8+ {[%emt 0:00:06]} Kd5 {[%emt 0:00:29]} 39. Qg8+ {[%emt 0:02:29]} Kd6 {[%emt 0:04:58]} 1/2-1/2

[Event "WYCC 2018 O14"]
[Site "Halkidiki"]
[Date "2018.10.21"]
[Round "2"]
[White "Vitenberg, Noam Aviv"]
[Black "Manucharyan, Gagik"]
[Result "1-0"]
[ECO "E46"]
[WhiteElo "2175"]
[BlackElo "1827"]
[Annotator "NA"]
[PlyCount "53"]
[EventDate "2018.10.20"]
[EventType "swiss"]
[EventCountry "GRE"]
[SourceTitle "playchess.com"]
[Source "ChessBase"]
[SourceQuality "1"]
[TimeControl "40/5400+30:1800+30"]

1. d4 {[%emt 0:00:00]} Nf6 {[%emt 0:00:00]} 2. c4 {[%emt 0:00:20]} e6 {[%emt 0:00:00]} 3. Nc3 {[%emt 0:01:43]} Bb4 {[%emt 0:01:12]} 4. e3 {[%emt 0:00:15]} O-O {[%emt 0:00:11]} 5. Nge2 {[%emt 0:00:15]} d5 {[%emt 0:01:17]} 6. a3 {[%emt 0:00:18]} Be7 {[%emt 0:00:44]} 7. cxd5 {[%emt 0:02:18]} exd5 {[%emt 0:00:56]} 8. g3 {[%emt 0:06:03]} c6 {[%emt 0:01:14]} 9. Bg2 {[%emt 0:00:06]} Bf5 {[%emt 0:02:30]} 10. f3 {[%emt 0:10:46] E46: Nimzo-Indian: Rubinstein: 4 e3 0-0 5 Ne2 without early Bd3} (10. h3 Re8 11. g4 Be4 12. f3 Bg6 13. O-O h6 14. e4 dxe4 15. fxe4 Na6 16. Nf4 Bh7 17. e5 Nd7 {1-0 (48) Javakhishvili,L (2489)-Khotenashvili,B (2493) Batumi 2016}) 10... Qd7 {[%emt 0:16:33]} 11. h3 {[%emt 0:18:14]} Re8 $146 {[%emt 0:09:53]} ({Predecessor:} 11... Qe6 12. g4 Bg6 13. Nf4 Qd6 14. Qe2 Re8 15. h4 h6 16. Nxg6 fxg6 17. Bd2 Bf8 {1-0 (54) Doubleday,W (2037)-Pressl,H (1802) Opatija 2013}) 12. e4 {[%emt 0:08:11]} dxe4 {[%emt 0:04:37]} 13. fxe4 {[%emt 0:00:16]} Be6 {[%emt 0:00:05]} 14. Be3 {[%emt 0:12:24]} Na6 {[%emt 0:05:37]} 15. Qd2 {[%emt 0:01:41]} Nc7 {[%emt 0:01:08]} 16. g4 {[%emt 0:01:55]} h6 {[%emt 0:04:40]} 17. O-O-O {[%emt 0:04:31]} Bb3 {[%emt 0:11:56]} 18. Rdg1 {[%emt 0:01:02]} Ne6 {[%emt 0:01:16]} 19. Ng3 {[%emt 0:04:56]} c5 {[%emt 0:08:30]} 20. d5 {[%emt 0:04:56]} Nd4 {[%emt 0:00:05]} 21. Nf5 $11 {[%emt 0:01:22]} Bxd5 {[%emt 0:03:41]} 22. Bxd4 {[%emt 0:03:09]} cxd4 {[%emt 0:00:26]} 23. Nxe7+ {[%emt 0:00:33]} Rxe7 {[%emt 0:11:39]} 24. Nxd5 {[%emt 0:00:17]} Nxd5 {[%emt 0:01:26]} 25. exd5 {[%emt 0:00:17]} Qb5 {[%emt 0:00:22]} 26. Kb1 {[%emt 0:01:56]} Re2 27. Bf1 1-0

[Event "WYCC 2018 O14"]
[Site "Halkidiki"]
[Date "2018.10.21"]
[Round "2"]
[White "Lopez Varela, Pablo"]
[Black "Shinn, Jungmin"]
[Result "1/2-1/2"]
[ECO "A01"]
[WhiteElo "2172"]
[BlackElo "1659"]
[Annotator "NA"]
[PlyCount "66"]
[EventDate "2018.10.20"]
[EventType "swiss"]
[EventCountry "GRE"]
[SourceTitle "playchess.com"]
[Source "ChessBase"]
[SourceQuality "1"]
[TimeControl "40/5400+30:1800+30"]

1. b3 {[%emt 0:00:00]} Nf6 {[%emt 0:00:00]} 2. Bb2 {[%emt 0:00:00]} d6 {[%emt 0:00:30]} 3. d3 {[%emt 0:02:20]} e5 {[%emt 0:00:46]} 4. g3 {[%emt 0:00:37]} g6 {[%emt 0:00:42]} 5. Bg2 {[%emt 0:00:39]} Bg7 {[%emt 0:00:18]} 6. Nd2 {[%emt 0:01:35]} c5 {[%emt 0:02:39]} 7. Ngf3 {[%emt 0:04:52]} Nc6 {[%emt 0:00:24]} 8. Ne4 {[%emt 0:05:34]} d5 {[%emt 0:12:52]} 9. Nxf6+ {[%emt 0:01:06]} Bxf6 {[%emt 0:00:11]} 10. e4 {[%emt 0:05:33]} dxe4 {[%emt 0:13:22]} 11. dxe4 {[%emt 0:00:06]} Be6 {[%emt 0:01:57]} 12. O-O {[%emt 0:10:06]} O-O {[%emt 0:01:46]} 13. Nd2 {[%emt 0:05:56]} Qa5 {[%emt 0:07:18]} 14. c3 {[%emt 0:04:06]} Rfd8 {[%emt 0:00:52]} 15. Qe2 {[%emt 0:00:42]} Rac8 {[%emt 0:02:50]} 16. Rfd1 {[%emt 0:05:29]} Rc7 {[%emt 0:03:21]} 17. Nf1 {[%emt 0:01:22]} Rxd1 {[%emt 0:05:13]} 18. Qxd1 {[%emt 0:01:18]} Rd7 $11 {[%emt 0:00:52]} 19. Qc2 {[%emt 0:00:54]} Bg5 {[%emt 0:01:46]} 20. h4 {[%emt 0:04:39]} Bh6 {[%emt 0:00:14]} 21. Bf3 {[%emt 0:02:15]} Qd8 {[%emt 0:03:51]} 22. Bc1 {[%emt 0:02:59]} Bxc1 {[%emt 0:00:35]} 23. Rxc1 {[%emt 0:02:50]} c4 {[%emt 0:01:04]} 24. b4 {[%emt 0:07:17]} f5 {[%emt 0:02:40]} 25. Ne3 {[%emt 0:09:04]} Rd2 {[%emt 0:07:16]} 26. Rd1 {[%emt 0:06:36]} Rxd1+ {[%emt 0:01:40]} 27. Qxd1 {[%emt 0:03:31]} Qxd1+ {[%emt 0:00:37]} 28. Nxd1 {[%emt 0:00:11]} f4 {[%emt 0:00:51]} 29. Kg2 {[%emt 0:01:17]} b6 {[%emt 0:02:45]} 30. Be2 {[%emt 0:01:57]} h6 {[%emt 0:01:17]} 31. Nb2 {[%emt 0:02:33]} b5 {[%emt 0:00:23]} 32. a3 {[%emt 0:00:41]} Kf7 {[%emt 0:00:16]} 33. Kf3 {[%emt 0:00:33]} g5 1/2-1/2

[Event "WYCC 2018 O14"]
[Site "Halkidiki"]
[Date "2018.10.21"]
[Round "2"]
[White "Turgut, Aydin"]
[Black "Thenuka, Kuruwita Gamalathge"]
[Result "1-0"]
[ECO "B01"]
[WhiteElo "2156"]
[BlackElo "1710"]
[Annotator "NA"]
[PlyCount "77"]
[EventDate "2018.10.20"]
[EventType "swiss"]
[EventCountry "GRE"]
[SourceTitle "playchess.com"]
[Source "ChessBase"]
[SourceQuality "1"]
[TimeControl "40/5400+30:1800+30"]

1. e4 d5 {[%emt 0:00:00]} 2. exd5 {[%emt 0:00:00]} Qxd5 {[%emt 0:00:00]} 3. Nc3 {[%emt 0:00:09]} Qd6 {[%emt 0:00:00]} 4. d4 {[%emt 0:00:25]} Nf6 {[%emt 0:00:10]} 5. Nf3 {[%emt 0:00:13]} a6 {[%emt 0:00:20]} 6. g3 {[%emt 0:00:45]} Bg4 {[%emt 0:00:27]} 7. h3 {[%emt 0:00:11] B01: Scandinavian Defence} (7. Bg2 c6 8. O-O e6 9. h3 Bxf3 10. Bxf3 Be7 11. b3 O-O 12. Bb2 Nbd7 13. Ne2 Rad8 14. Re1 Rfe8 {0-1 (64) Hou,Y (2663)-Megaranto,S (2535) Almaty 2016}) 7... Bxf3 {[%emt 0:06:43]} 8. Qxf3 {[%emt 0:00:10]} Nc6 {[%emt 0:00:12]} 9. Be3 {[%emt 0:00:12]} e6 {[%emt 0:03:23]} 10. O-O-O {[%emt 0:02:15]} O-O-O {[%emt 0:10:17]} 11. Bg2 {[%emt 0:00:14]} Qb4 {[%emt 0:05:10]} 12. g4 {[%emt 0:18:55]} Qa5 {[%emt 0:04:41]} 13. g5 $146 {[%emt 0:10:06]} ({Predecessor:} 13. Kb1 Bb4 14. Ne4 Nxe4 15. Qxe4 {1-0 (44) Wang,J (2180)-Rakhmangulova,A (2098) Moscow 2010}) 13... Nd5 {[%emt 0:00:20]} 14. Nxd5 {[%emt 0:00:31]} Qxd5 {[%emt 0:00:41]} 15. Qxd5 {[%emt 0:02:01]} exd5 {[%emt 0:00:14]} 16. h4 {[%emt 0:02:40]} Kb8 {[%emt 0:06:38]} 17. Rh3 {[%emt 0:11:49]} Be7 {[%emt 0:00:30]} 18. Rf3 {[%emt 0:03:54]} Rhf8 {[%emt 0:30:23]} 19. Rf5 {[%emt 0:00:30]} Nb4 {[%emt 0:05:33]} 20. a3 {[%emt 0:05:11]} g6 {[%emt 0:00:25]} 21. Re5 {[%emt 0:01:30]} Bd6 {[%emt 0:00:33]} 22. axb4 {[%emt 0:00:15]} Bxe5 {[%emt 0:00:07]} 23. dxe5 {[%emt 0:00:04]} c6 {[%emt 0:00:33]} 24. Bb6 {[%emt 0:03:23]} Rde8 {[%emt 0:00:34]} 25. f4 {[%emt 0:00:45]} h6 {[%emt 0:00:59]} 26. Kd2 {[%emt 0:07:06]} hxg5 {[%emt 0:00:14]} 27. hxg5 {[%emt 0:00:02]} Rh8 {[%emt 0:00:14]} 28. Ke2 {[%emt 0:00:44]} Kc8 {[%emt 0:07:04]} 29. Kf2 {[%emt 0:01:11]} Rh4 {[%emt 0:01:07]} 30. Kg3 {[%emt 0:00:06]} Reh8 {[%emt 0:00:04]} 31. b3 {[%emt 0:01:42]} Kd7 $18 {[%emt 0:00:27]} 32. c4 {[%emt 0:03:07]} Ke6 {[%emt 0:00:15]} 33. cxd5+ {[%emt 0:01:58]} cxd5 {[%emt 0:00:06]} 34. Rxd5 {[%emt 0:01:25]} Kf5 {[%emt 0:00:10]} 35. e6+ {[%emt 0:00:50]} Kxe6 {[%emt 0:00:06]} 36. Re5+ {[%emt 0:02:33]} Kd7 {[%emt 0:00:15]} 37. Bc5 {[%emt 0:01:05]} R4h7 {[%emt 0:00:29]} 38. Re7+ {[%emt 0:00:27]} Kd8 {[%emt 0:00:08]} 39. Rxb7 {[%emt 0:00:18]} 1-0

[Event "WYCC 2018 O14"]
[Site "Halkidiki"]
[Date "2018.10.21"]
[Round "2"]
[White "Kusa, Jakub"]
[Black "Tadic, Stefan"]
[Result "0-1"]
[ECO "B04"]
[WhiteElo "2011"]
[BlackElo "2295"]
[Annotator "NA"]
[PlyCount "56"]
[EventDate "2018.10.20"]
[EventType "swiss"]
[EventCountry "GRE"]
[SourceTitle "playchess.com"]
[Source "ChessBase"]
[SourceQuality "1"]
[TimeControl "40/5400+30:1800+30"]

1. e4 {[%emt 0:00:00]} Nf6 {[%emt 0:00:00]} 2. e5 {[%emt 0:00:10]} Nd5 {[%emt 0:00:34]} 3. d4 {[%emt 0:00:42]} d6 {[%emt 0:00:45]} 4. Nf3 {[%emt 0:00:33]} dxe5 {[%emt 0:00:52]} 5. dxe5 {[%emt 0:03:27]} Bf5 {[%emt 0:19:54]} 6. Bc4 {[%emt 0:04:26]} e6 {[%emt 0:07:17]} 7. a3 {[%emt 0:05:46]} Be7 {[%emt 0:02:03]} 8. O-O {[%emt 0:02:37]} Nb6 {[%emt 0:11:00]} 9. Qxd8+ {[%emt 0:02:04]} Bxd8 {[%emt 0:00:24]} 10. Bd3 {[%emt 0:01:27]} Bxd3 {[%emt 0:02:34]} 11. cxd3 {[%emt 0:00:23]} Nc6 {[%emt 0:02:48]} 12. Nc3 {[%emt 0:06:35]} Be7 {[%emt 0:05:33]} 13. Be3 {[%emt 0:11:19]} O-O-O {[%emt 0:02:45]} 14. Rfd1 {[%emt 0:06:48]} Rd7 {[%emt 0:03:37]} 15. Rac1 {[%emt 0:06:05]} Rhd8 {[%emt 0:07:19]} 16. d4 {[%emt 0:10:23]} Nc4 {[%emt 0:05:27]} 17. Rc2 {[%emt 0:05:01]} N6xe5 {[%emt 0:04:14]} 18. Nb5 {[%emt 0:07:01]} Nxf3+ $19 {[%emt 0:04:49]} 19. gxf3 {[%emt 0:00:51]} Nxe3 {[%emt 0:02:39]} 20. fxe3 {[%emt 0:00:08]} Kb8 {[%emt 0:03:36]} 21. Rdc1 {[%emt 0:01:48]} a6 {[%emt 0:02:02]} 22. Nc3 {[%emt 0:01:36]} c5 {[%emt 0:01:12]} 23. Ne2 {[%emt 0:02:45]} cxd4 {[%emt 0:00:09]} 24. Nxd4 {[%emt 0:02:35]} Bg5 {[%emt 0:00:26]} 25. Kf2 {[%emt 0:01:37]} Rxd4 {[%emt 0:00:39]} 26. exd4 {[%emt 0:00:20]} Bxc1 {[%emt 0:00:05]} 27. Rxc1 {[%emt 0:00:18]} Rxd4 {[%emt 0:00:04]} 28. Rg1 {[%emt 0:00:11]} g6 0-1